[Event "Skol-SM i Schack 2024, Grupp A"]
[Site "Arena Varberg, Kattegattsvagen 26, Varberg, Sweden"]
[Date "2024.10.11"]
[Round "1.5"]
[White "Harlin, Jacob"]
[Black "Langhals, Mattias"]
[Result "1-0"]
[TimeControl "45 minutes + 10 seconds per move from move one."]
[WhiteFideId "1728180"]
[BlackFideId "1779168"]
[WhiteElo "1919"]
[BlackElo "1697"]

1. e4 {[%clk 00:45:15]} {[%emt 00:00:04]} e6 {[%clk 00:44:59]} {[%emt
00:00:21]} 2. d4 {[%clk 00:45:22]} {[%emt 00:00:03]} d5 {[%clk 00:45:00]}
{[%emt 00:00:10]} 3. Nc3 {[%clk 00:45:30]} {[%emt 00:00:02]} Nf6 {[%clk
00:44:57]} {[%emt 00:00:12]} 4. Bg5 {[%clk 00:45:38]} {[%emt 00:00:02]} Be7
{[%clk 00:44:56]} {[%emt 00:00:11]} 5. e5 {[%clk 00:45:45]} {[%emt 00:00:03]}
Nfd7 {[%clk 00:44:56]} {[%emt 00:00:10]} 6. Bxe7 {[%clk 00:45:52]} {[%emt
00:00:03]} Qxe7 {[%clk 00:44:54]} {[%emt 00:00:13]} 7. f4 {[%clk 00:46:00]}
{[%emt 00:00:01]} a6 {[%clk 00:44:03]} {[%emt 00:01:01]} 8. Nf3 {[%clk
00:45:30]} {[%emt 00:00:40]} c5 {[%clk 00:42:51]} {[%emt 00:01:21]} 9. Bd3
{[%clk 00:42:10]} {[%emt 00:03:30]} Nc6 {[%clk 00:42:09]} {[%emt 00:00:52]} 10.
dxc5 {[%clk 00:41:35]} {[%emt 00:00:45]} Qxc5 {[%emt 00:12:45]} 11. Qd2 {[%clk
00:32:13]} b5 {[%clk 00:32:44]} {[%emt 00:06:31]} 12. Ne2 {[%clk 00:19:34]}
{[%emt 00:12:50]} Bb7 {[%clk 00:26:33]} {[%emt 00:06:21]} 13. c3 {[%clk
00:15:24]} {[%emt 00:04:19]} Rc8 {[%clk 00:19:52]} {[%emt 00:06:52]} 14. Ned4
{[%clk 00:13:26]} {[%emt 00:02:08]} Qe7 {[%clk 00:15:19]} {[%emt 00:04:43]} 15.
O-O {[%clk 00:12:08]} {[%emt 00:01:28]} Nc5 {[%clk 00:13:28]} {[%emt 00:02:00]}
16. f5 {[%clk 00:08:29]} {[%emt 00:03:50]} Nxd4 {[%clk 00:09:24]} {[%emt
00:04:14]} 17. Nxd4 {[%clk 00:07:27]} {[%emt 00:01:12]} Nxd3 {[%clk 00:06:58]}
{[%emt 00:02:36]} 18. Qxd3 {[%clk 00:07:26]} {[%emt 00:00:11]} Kd7 {[%clk
00:05:10]} {[%emt 00:01:58]} 19. Rf2 {[%clk 00:06:01]} {[%emt 00:01:35]} Rhf8
{[%clk 00:04:02]} {[%emt 00:01:19]} 20. Raf1 {[%clk 00:05:35]} {[%emt
00:00:35]} g6 {[%clk 00:03:02]} {[%emt 00:01:10]} 21. fxe6+ {[%clk 00:04:16]}
{[%emt 00:01:29]} fxe6 {[%clk 00:03:01]} {[%emt 00:00:11]} 22. Rf6 {[%clk
00:04:13]} {[%emt 00:00:13]} Rxf6 {[%clk 00:01:37]} {[%emt 00:01:34]} 23. Rxf6
{[%clk 00:04:16]} {[%emt 00:00:07]} Kc7 {[%clk 00:00:28]} {[%emt 00:01:20]} 24.
Qf3 {[%clk 00:01:31]} {[%emt 00:02:55]} Kb8 {[%clk 00:00:26]} {[%emt 00:00:11]}
25. Rxe6 {[%clk 00:01:05]} {[%emt 00:00:36]} Qg5 {[%clk 00:00:26]} {[%emt
00:00:10]} 26. Qd1 {[%clk 00:00:17]} {[%emt 00:00:59]} Rf8 {[%clk 00:00:24]}
{[%emt 00:00:12]} 27. h3 {[%clk 00:00:19]} {[%emt 00:00:08]} Qe3+ {[%clk
00:00:30]} {[%emt 00:00:03]} 28. Kh1 {[%clk 00:00:20]} {[%emt 00:00:09]} Rf2
{[%emt 00:00:25]} 29. Rf6 {[%clk 00:00:23]} {[%emt 00:00:01]} Rxf6 {[%clk
00:00:14]} {[%emt 00:00:17]} 30. exf6 {[%clk 00:00:32]} {[%emt 00:00:01]} Qf4
{[%clk 00:00:22]} {[%emt 00:00:02]} 31. Qf3 {[%clk 00:00:38]} {[%emt 00:00:04]}
Qc1+ {[%clk 00:00:16]} {[%emt 00:00:16]} 32. Kh2 {[%clk 00:00:48]} Qh6 {[%clk
00:00:25]} 33. Ne6 {[%clk 00:00:36]} {[%emt 00:00:22]} d4 {[%clk 00:00:24]}
{[%emt 00:00:12]} 34. Qf4+ {[%clk 00:00:33]} {[%emt 00:00:12]} Qxf4+ {[%clk
00:00:31]} {[%emt 00:00:02]} 35. Nxf4 {[%clk 00:00:42]} d3 {[%clk 00:00:32]}
{[%emt 00:00:10]} 36. Nxd3 {[%clk 00:00:50]} {[%emt 00:00:02]} Bd5 {[%clk
00:00:36]} {[%emt 00:00:05]} 37. Ne5 {[%clk 00:00:58]} {[%emt 00:00:02]} Bxa2
{[%clk 00:00:15]} {[%emt 00:00:31]} 38. f7 {[%clk 00:01:05]} {[%emt 00:00:03]}
Bxf7 {[%clk 00:00:22]} {[%emt 00:00:03]} 39. Nxf7 {[%clk 00:01:13]} {[%emt
00:00:01]} Kc7 {[%clk 00:00:25]} {[%emt 00:00:08]} 40. Kg3 {[%clk 00:00:55]}
{[%emt 00:00:28]} Kc6 {[%clk 00:00:28]} {[%emt 00:00:08]} 41. Kf3 {[%clk
00:00:59]} {[%emt 00:00:05]} Kd5 {[%clk 00:00:30]} {[%emt 00:00:07]} 42. Ke3
{[%clk 00:01:06]} {[%emt 00:00:04]} Kc4 {[%clk 00:00:37]} {[%emt 00:00:04]} 43.
Kd2 {[%clk 00:01:15]} {[%emt 00:00:01]} a5 {[%clk 00:00:33]} {[%emt 00:00:14]}
44. Kc2 {[%clk 00:01:12]} {[%emt 00:00:13]} Kd5 {[%clk 00:00:31]} {[%emt
00:00:12]} 45. Ng5 {[%clk 00:01:18]} {[%emt 00:00:04]} h6 {[%clk 00:00:34]}
{[%emt 00:00:07]} 46. Nf3 {[%clk 00:01:14]} {[%emt 00:00:13]} Ke4 {[%clk
00:00:27]} {[%emt 00:00:17]} 47. Nd4 {[%clk 00:01:16]} {[%emt 00:00:09]} b4
{[%clk 00:00:29]} {[%emt 00:00:08]} 48. cxb4 {[%clk 00:01:18]} {[%emt
00:00:07]} axb4 {[%clk 00:00:37]} {[%emt 00:00:02]} 49. Nc6 {[%clk 00:01:28]}
Kf4 {[%clk 00:00:32]} {[%emt 00:00:14]} 50. Nxb4 {[%clk 00:01:36]} {[%emt
00:00:03]} Kg3 {[%clk 00:00:41]} 51. Nd3 {[%clk 00:01:41]} {[%emt 00:00:05]} g5
{[%clk 00:00:44]} {[%emt 00:00:07]} 52. b4 {[%clk 00:01:47]} {[%emt 00:00:04]}
Kxg2 {[%clk 00:00:51]} {[%emt 00:00:02]} 53. b5 {[%clk 00:01:55]} {[%emt
00:00:03]} Kxh3 {[%clk 00:00:59]} {[%emt 00:00:01]} 54. b6 {[%clk 00:02:04]}
{[%emt 00:00:02]} g4 {[%clk 00:01:06]} {[%emt 00:00:03]} 55. b7 {[%clk
00:02:13]} {[%emt 00:00:01]} g3 {[%clk 00:01:13]} {[%emt 00:00:02]} 56. b8=Q
{[%clk 00:02:18]} {[%emt 00:00:05]} h5 {[%clk 00:01:15]} {[%emt 00:00:08]} 57.
Qb7 {[%clk 00:01:54]} {[%emt 00:00:35]} Kh2 {[%clk 00:01:08]} {[%emt 00:00:16]}
58. Nf4 {[%clk 00:02:00]} {[%emt 00:00:05]} 1-0

[Event "Skol-SM i Schack 2024, Grupp A"]
[Site "Arena Varberg, Kattegattsvagen 26, Varberg, Sweden"]
[Date "2024.10.11"]
[Round "2.9"]
[White "Johansson, Sigge"]
[Black "Abdulkader, Ahmad"]
[Result "1/2-1/2"]
[TimeControl "45 minutes + 10 seconds per move from move one."]
[WhiteFideId "1742612"]
[BlackFideId "1776550"]
[WhiteElo "1746"]
[BlackElo "1613"]

1. e4 {[%clk 00:45:17]} {[%emt 00:00:02]} e5 {[%clk 00:45:20]} 2. Nf3 {[%clk
00:45:21]} {[%emt 00:00:07]} Nc6 {[%clk 00:45:29]} {[%emt 00:00:02]} 3. Bc4
{[%clk 00:45:27]} {[%emt 00:00:04]} Nf6 {[%clk 00:45:28]} {[%emt 00:00:11]} 4.
Ng5 {[%clk 00:44:11]} {[%emt 00:01:25]} d5 {[%clk 00:45:31]} {[%emt 00:00:07]}
5. exd5 {[%clk 00:44:14]} {[%emt 00:00:07]} b5 {[%clk 00:45:40]} {[%emt
00:00:01]} 6. dxc6 {[%clk 00:32:57]} {[%emt 00:11:26]} bxc4 {[%clk 00:45:45]}
{[%emt 00:00:06]} 7. Qe2 {[%clk 00:32:33]} {[%emt 00:00:34]} Qd5 {[%clk
00:42:24]} {[%emt 00:03:31]} 8. Nf3 {[%clk 00:28:37]} {[%emt 00:04:05]} Bd6
{[%clk 00:31:22]} {[%emt 00:11:13]} 9. Nc3 {[%clk 00:23:25]} {[%emt 00:05:22]}
Qxc6 {[%clk 00:31:19]} {[%emt 00:00:12]} 10. Nxe5 {[%clk 00:18:54]} {[%emt
00:04:41]} Qxg2 {[%clk 00:20:46]} {[%emt 00:10:43]} 11. Nxc4+ {[%clk 00:17:54]}
{[%emt 00:01:09]} Be7 {[%clk 00:20:15]} {[%emt 00:00:43]} 12. Qf1 {[%clk
00:17:40]} {[%emt 00:00:24]} Qf3 {[%clk 00:14:36]} {[%emt 00:05:48]} 13. Rg1
{[%clk 00:15:15]} {[%emt 00:02:35]} Ba6 {[%clk 00:09:21]} {[%emt 00:05:25]} 14.
Rg3 {[%clk 00:10:17]} {[%emt 00:05:07]} Qc6 {[%clk 00:08:43]} {[%emt 00:00:49]}
15. d3 {[%clk 00:09:22]} {[%emt 00:01:05]} O-O {[%clk 00:01:54]} {[%emt
00:07:00]} 16. Bh6 {[%clk 00:09:16]} {[%emt 00:00:15]} Nh5 {[%clk 00:01:54]}
{[%emt 00:00:10]} 17. Rh3 {[%clk 00:06:48]} {[%emt 00:02:38]} Qxh6 {[%clk
00:01:52]} {[%emt 00:00:12]} 18. Qe2 {[%clk 00:06:33]} {[%emt 00:00:25]} g6
{[%clk 00:01:10]} {[%emt 00:00:53]} 19. Nd5 {[%clk 00:05:41]} {[%emt 00:01:02]}
Bb4+ {[%clk 00:00:52]} {[%emt 00:00:28]} 20. c3 {[%clk 00:04:27]} {[%emt
00:01:23]} Rfe8 {[%clk 00:00:58]} {[%emt 00:00:04]} 21. Nf6+ {[%clk 00:04:34]}
{[%emt 00:00:03]} Nxf6 {[%clk 00:00:27]} {[%emt 00:00:42]} 22. Rxh6 {[%clk
00:04:41]} {[%emt 00:00:02]} Rxe2+ 23. Kxe2 {[%clk 00:04:50]} Re8+ {[%clk
00:00:35]} {[%emt 00:00:11]} 24. Kd2 {[%clk 00:04:58]} {[%emt 00:00:02]} Bf8
{[%emt 00:00:57]} 1/2-1/2

[Event "Skol-SM i Schack 2024, Grupp A"]
[Site "Arena Varberg, Kattegattsvagen 26, Varberg, Sweden"]
[Date "2024.10.11"]
[Round "1.6"]
[White "Sniegon, Filip"]
[Black "Kleist, Axel"]
[Result "0-1"]
[TimeControl "45 minutes + 10 seconds per move from move one."]
[WhiteFideId "1778277"]
[BlackFideId "1764322"]
[WhiteElo "1684"]
[BlackElo "1912"]

1. d4 {[%clk 00:45:16]} {[%emt 00:00:03]} e6 {[%clk 00:45:04]} {[%emt
00:00:17]} 2. c4 {[%clk 00:45:09]} {[%emt 00:00:17]} f5 {[%clk 00:45:10]}
{[%emt 00:00:04]} 3. Nc3 {[%clk 00:45:01]} {[%emt 00:00:18]} Nf6 {[%clk
00:45:13]} {[%emt 00:00:07]} 4. Nf3 {[%clk 00:44:55]} {[%emt 00:00:16]} Bb4
{[%clk 00:45:05]} {[%emt 00:00:18]} 5. Bd2 {[%clk 00:44:32]} {[%emt 00:00:32]}
b6 {[%clk 00:44:47]} {[%emt 00:00:29]} 6. a3 {[%clk 00:43:26]} {[%emt
00:01:15]} Bxc3 {[%clk 00:44:49]} {[%emt 00:00:08]} 7. Bxc3 {[%clk 00:43:19]}
{[%emt 00:00:17]} Ne4 {[%clk 00:44:55]} {[%emt 00:00:05]} 8. Qc2 {[%clk
00:42:42]} {[%emt 00:00:47]} Bb7 {[%clk 00:43:40]} {[%emt 00:01:24]} 9. Nd2
{[%clk 00:39:59]} {[%emt 00:02:53]} Nxc3 {[%clk 00:42:09]} {[%emt 00:01:42]} 10.
Qxc3 {[%clk 00:39:57]} {[%emt 00:00:11]} Qf6 {[%clk 00:40:43]} {[%emt
00:01:36]} 11. Nf3 {[%clk 00:37:29]} {[%emt 00:02:39]} d6 {[%clk 00:37:51]}
{[%emt 00:03:02]} 12. e3 {[%clk 00:36:04]} {[%emt 00:01:35]} Nd7 {[%clk
00:37:27]} {[%emt 00:00:34]} 13. Be2 {[%clk 00:35:53]} {[%emt 00:00:21]} a5
{[%clk 00:29:17]} {[%emt 00:08:20]} 14. Qc2 {[%clk 00:30:35]} {[%emt 00:05:28]}
O-O {[%clk 00:27:02]} {[%emt 00:02:24]} 15. O-O {[%clk 00:27:34]} {[%emt
00:03:11]} a4 {[%clk 00:24:19]} {[%emt 00:02:53]} 16. b4 {[%clk 00:26:17]}
{[%emt 00:01:27]} axb3 {[%clk 00:24:20]} {[%emt 00:00:10]} 17. Qxb3 {[%clk
00:26:25]} Kh8 {[%clk 00:21:10]} {[%emt 00:03:20]} 18. Nd2 {[%clk 00:22:54]}
{[%emt 00:03:42]} e5 {[%clk 00:21:02]} {[%emt 00:00:18]} 19. Bf3 {[%clk
00:21:19]} {[%emt 00:01:43]} e4 {[%clk 00:20:46]} {[%emt 00:00:27]} 20. Be2
{[%clk 00:21:28]} {[%emt 00:00:02]} f4 {[%clk 00:20:14]} {[%emt 00:00:42]} 21.
f3 {[%clk 00:20:49]} {[%emt 00:00:47]} fxe3 {[%clk 00:16:03]} {[%emt 00:04:22]}
22. Qxe3 {[%clk 00:19:55]} {[%emt 00:01:03]} exf3 {[%clk 00:14:45]} {[%emt
00:01:29]} 23. Bxf3 {[%clk 00:19:37]} {[%emt 00:00:27]} Rae8 {[%clk 00:13:43]}
{[%emt 00:01:12]} 24. Qd3 {[%clk 00:19:07]} {[%emt 00:00:40]} Bxf3 {[%clk
00:13:09]} {[%emt 00:00:44]} 25. Nxf3 {[%clk 00:17:20]} {[%emt 00:01:57]} Qh6
{[%clk 00:11:17]} {[%emt 00:02:02]} 26. Rae1 {[%clk 00:16:20]} {[%emt
00:01:10]} Nf6 {[%clk 00:11:22]} {[%emt 00:00:06]} 27. Rxe8 {[%clk 00:12:05]}
Rxe8 {[%clk 00:11:15]} {[%emt 00:04:42]} 28. Re1 {[%clk 00:11:30]} {[%emt
00:00:45]} Rxe1+ {[%clk 00:10:59]} {[%emt 00:00:26]} 29. Nxe1 {[%clk 00:11:39]}
{[%emt 00:00:02]} Qc1 {[%clk 00:10:04]} {[%emt 00:01:05]} 30. Kf1 {[%clk
00:10:36]} {[%emt 00:01:12]} Ng4 {[%clk 00:08:46]} {[%emt 00:01:27]} 31. Qe2
{[%clk 00:09:10]} {[%emt 00:01:36]} Qf4+ {[%clk 00:07:43]} {[%emt 00:01:14]} 32.
Nf3 {[%clk 00:08:29]} {[%emt 00:00:50]} Nxh2+ {[%clk 00:06:28]} {[%emt
00:01:25]} 33. Kg1 {[%clk 00:08:01]} {[%emt 00:00:38]} Nxf3+ {[%clk 00:06:30]}
{[%emt 00:00:09]} 34. gxf3 {[%clk 00:08:09]} {[%emt 00:00:01]} Qxd4+ {[%clk
00:06:25]} {[%emt 00:00:16]} 35. Kg2 {[%clk 00:07:51]} {[%emt 00:00:27]} h6
{[%clk 00:06:15]} {[%emt 00:00:21]} 36. a4 {[%clk 00:07:15]} {[%emt 00:00:45]}
Qe5 {[%clk 00:05:40]} {[%emt 00:00:45]} 37. Qd3 {[%clk 00:06:48]} {[%emt
00:00:37]} Kg8 {[%clk 00:04:38]} {[%emt 00:01:13]} 38. Kf2 {[%clk 00:06:08]}
{[%emt 00:00:50]} Qh2+ {[%clk 00:03:58]} {[%emt 00:00:50]} 39. Ke3 {[%clk
00:06:15]} {[%emt 00:00:02]} Qg1+ {[%clk 00:03:33]} {[%emt 00:00:35]} 40. Ke2
{[%clk 00:06:05]} {[%emt 00:00:19]} Qc5 {[%clk 00:03:25]} {[%emt 00:00:19]} 41.
Qe4 {[%clk 00:05:57]} {[%emt 00:00:19]} Qe5 {[%clk 00:03:20]} {[%emt 00:00:14]}
42. Qxe5 {[%clk 00:06:02]} {[%emt 00:00:05]} dxe5 {[%clk 00:03:24]} {[%emt
00:00:07]} 43. c5 {[%clk 00:06:06]} {[%emt 00:00:05]} Kf7 {[%clk 00:03:26]}
{[%emt 00:00:08]} 44. Ke3 {[%clk 00:06:01]} {[%emt 00:00:15]} Ke6 {[%clk
00:03:09]} {[%emt 00:00:28]} 45. cxb6 {[%clk 00:05:55]} {[%emt 00:00:15]} cxb6
{[%clk 00:03:14]} {[%emt 00:00:06]} 46. Ke4 {[%clk 00:06:04]} g5 {[%clk
00:03:16]} {[%emt 00:00:08]} 47. Kd3 {[%clk 00:06:06]} {[%emt 00:00:08]} Kd5
{[%clk 00:03:21]} {[%emt 00:00:05]} 48. Kc3 {[%clk 00:05:59]} {[%emt 00:00:17]}
h5 {[%clk 00:03:19]} {[%emt 00:00:11]} 0-1

[Event "Skol-SM i Schack 2024, Grupp A"]
[Site "Arena Varberg, Kattegattsvagen 26, Varberg, Sweden"]
[Date "2024.10.11"]
[Round "2.10"]
[White "Langhals, Mattias"]
[Black "Al-Sherufi, Haider"]
[Result "1-0"]
[TimeControl "45 minutes + 10 seconds per move from move one."]
[WhiteFideId "1779168"]
[BlackFideId "1745212"]
[WhiteElo "1697"]
[BlackElo "1599"]

1. e4 {[%clk 00:45:17]} {[%emt 00:00:02]} e6 {[%clk 00:45:18]} {[%emt
00:00:03]} 2. d4 {[%clk 00:45:09]} {[%emt 00:00:18]} d5 {[%clk 00:45:25]}
{[%emt 00:00:03]} 3. e5 {[%clk 00:45:07]} {[%emt 00:00:12]} c5 {[%clk
00:45:32]} {[%emt 00:00:03]} 4. c3 {[%clk 00:45:10]} {[%emt 00:00:07]} Nc6
{[%clk 00:45:37]} {[%emt 00:00:05]} 5. Nf3 {[%clk 00:45:15]} {[%emt 00:00:04]}
Qb6 {[%clk 00:45:43]} {[%emt 00:00:04]} 6. Bd3 {[%clk 00:45:03]} {[%emt
00:00:22]} cxd4 {[%clk 00:45:50]} {[%emt 00:00:04]} 7. cxd4 {[%clk 00:45:05]}
{[%emt 00:00:08]} Bd7 {[%clk 00:45:57]} {[%emt 00:00:03]} 8. O-O {[%clk
00:44:50]} {[%emt 00:00:25]} Nxd4 {[%clk 00:46:03]} {[%emt 00:00:04]} 9. Nxd4
{[%clk 00:44:52]} {[%emt 00:00:08]} Qxd4 {[%clk 00:46:07]} {[%emt 00:00:03]} 10.
Nc3 {[%clk 00:44:50]} {[%emt 00:00:14]} Qxe5 {[%clk 00:45:51]} {[%emt
00:00:25]} 11. Re1 {[%clk 00:44:54]} {[%emt 00:00:07]} Qc7 {[%clk 00:45:29]}
{[%emt 00:00:32]} 12. Nxd5 {[%clk 00:43:55]} {[%emt 00:01:09]} Qd6 {[%clk
00:44:17]} {[%emt 00:01:22]} 13. Bc4 {[%clk 00:39:49]} {[%emt 00:04:16]} O-O-O
{[%clk 00:42:28]} {[%emt 00:01:58]} 14. Bf4 {[%clk 00:34:01]} {[%emt 00:05:58]}
Qc6 {[%clk 00:42:04]} {[%emt 00:00:33]} 15. Rc1 {[%clk 00:33:09]} {[%emt
00:01:04]} Bc5 {[%clk 00:41:45]} {[%emt 00:00:29]} 16. b4 {[%clk 00:32:20]}
{[%emt 00:01:00]} exd5 {[%clk 00:41:04]} {[%emt 00:00:50]} 17. Bxd5 {[%clk
00:31:46]} {[%emt 00:00:43]} Qf6 {[%clk 00:41:03]} {[%emt 00:00:11]} 18. Rxc5+
{[%clk 00:31:29]} {[%emt 00:00:27]} 1-0

[Event "Skol-SM i Schack 2024, Grupp A"]
[Site "Arena Varberg, Kattegattsvagen 26, Varberg, Sweden"]
[Date "2024.10.11"]
[Round "1.7"]
[White "Fridman, Arvid"]
[Black "Savela, Julina"]
[Result "1-0"]
[TimeControl "45 minutes + 10 seconds per move from move one."]
[WhiteFideId "1758632"]
[BlackFideId "1767437"]
[WhiteElo "1895"]
[BlackElo "1682"]

1. d4 {[%clk 00:45:17]} {[%emt 00:00:02]} d5 {[%clk 00:45:17]} {[%emt
00:00:04]} 2. c4 {[%clk 00:45:17]} {[%emt 00:00:11]} e6 {[%clk 00:45:20]}
{[%emt 00:00:06]} 3. Nc3 {[%clk 00:45:20]} {[%emt 00:00:06]} Nf6 {[%clk
00:45:27]} {[%emt 00:00:04]} 4. cxd5 {[%clk 00:45:24]} {[%emt 00:00:07]} exd5
{[%clk 00:45:30]} {[%emt 00:00:06]} 5. Bg5 {[%clk 00:45:30]} {[%emt 00:00:04]}
Be7 {[%clk 00:45:07]} {[%emt 00:00:33]} 6. Qc2 {[%clk 00:45:14]} {[%emt
00:00:26]} O-O {[%clk 00:43:44]} {[%emt 00:01:33]} 7. e3 {[%clk 00:45:05]}
{[%emt 00:00:19]} c6 {[%clk 00:42:17]} {[%emt 00:01:38]} 8. Bd3 {[%clk
00:45:06]} {[%emt 00:00:08]} h6 {[%clk 00:41:22]} {[%emt 00:01:05]} 9. Bh4
{[%clk 00:45:15]} {[%emt 00:00:01]} Be6 {[%clk 00:39:36]} {[%emt 00:01:56]} 10.
f3 {[%clk 00:44:45]} {[%emt 00:00:41]} Nbd7 {[%clk 00:37:16]} {[%emt 00:02:30]}
11. Nge2 {[%clk 00:44:41]} {[%emt 00:00:14]} Nb6 {[%clk 00:32:27]} {[%emt
00:04:59]} 12. O-O {[%clk 00:43:37]} {[%emt 00:01:14]} Nc8 {[%clk 00:29:20]}
{[%emt 00:03:17]} 13. e4 {[%clk 00:43:10]} {[%emt 00:00:36]} dxe4 {[%clk
00:29:00]} {[%emt 00:00:31]} 14. fxe4 {[%clk 00:43:02]} {[%emt 00:00:18]} Ng4
{[%clk 00:26:32]} {[%emt 00:02:38]} 15. Bxe7 {[%clk 00:41:28]} {[%emt
00:01:44]} Nxe7 {[%clk 00:24:54]} {[%emt 00:01:48]} 16. Rf3 {[%clk 00:39:58]}
{[%emt 00:01:40]} Rc8 {[%clk 00:23:51]} {[%emt 00:01:13]} 17. h3 {[%clk
00:35:47]} {[%emt 00:04:20]} Nf6 {[%clk 00:23:31]} {[%emt 00:00:31]} 18. Raf1
{[%clk 00:34:38]} {[%emt 00:01:18]} Qd7 {[%clk 00:20:19]} {[%emt 00:03:23]} 19.
Qd2 {[%clk 00:31:14]} {[%emt 00:03:34]} Nh7 {[%clk 00:19:13]} {[%emt 00:01:16]}
20. Rg3 {[%clk 00:29:52]} {[%emt 00:01:31]} Kh8 {[%clk 00:18:35]} {[%emt
00:00:49]} 21. Qe3 {[%clk 00:28:27]} {[%emt 00:01:34]} Rfd8 {[%clk 00:14:35]}
{[%emt 00:04:11]} 22. b3 {[%clk 00:25:46]} {[%emt 00:02:51]} Nf8 {[%clk
00:14:25]} {[%emt 00:00:20]} 23. Bc2 {[%clk 00:23:36]} {[%emt 00:02:17]} b6
{[%clk 00:05:45]} {[%emt 00:08:54]} 24. Bb1 {[%clk 00:23:40]} {[%emt 00:00:05]}
Rc7 {[%clk 00:05:20]} {[%emt 00:00:36]} 25. Rd1 {[%clk 00:22:49]} {[%emt
00:01:00]} Qc8 {[%clk 00:05:18]} {[%emt 00:00:12]} 26. Kh1 {[%clk 00:20:33]}
{[%emt 00:02:26]} Rcd7 {[%clk 00:05:03]} {[%emt 00:00:25]} 27. Nf4 {[%clk
00:20:09]} {[%emt 00:00:33]} Qa8 {[%clk 00:03:22]} {[%emt 00:01:52]} 28. Nce2
{[%clk 00:20:00]} {[%emt 00:00:18]} Neg6 {[%emt 00:01:11]} 29. Nh5 {[%clk
00:17:19]} {[%emt 00:02:50]} c5 {[%clk 00:01:22]} {[%emt 00:01:11]} 30. d5
{[%clk 00:15:44]} {[%emt 00:01:44]} Bxd5 {[%clk 00:01:29]} {[%emt 00:00:03]} 31.
Qc3 {[%clk 00:14:49]} {[%emt 00:01:05]} Ne6 {[%clk 00:00:51]} {[%emt 00:00:48]}
32. exd5 {[%clk 00:13:30]} {[%emt 00:01:29]} Rxd5 {[%clk 00:00:57]} {[%emt
00:00:04]} 33. Rxd5 {[%clk 00:12:57]} {[%emt 00:00:43]} Qxd5 {[%clk 00:01:04]}
{[%emt 00:00:03]} 34. Bxg6 {[%clk 00:12:06]} {[%emt 00:01:00]} fxg6 {[%clk
00:00:28]} {[%emt 00:00:47]} 35. Nhf4 {[%clk 00:12:08]} {[%emt 00:00:07]} Qd1+
{[%clk 00:00:27]} {[%emt 00:00:12]} 36. Kh2 {[%clk 00:12:14]} {[%emt 00:00:04]}
Nxf4 {[%clk 00:00:20]} {[%emt 00:00:17]} 37. Nxf4 {[%clk 00:12:22]} g5 {[%clk
00:00:18]} {[%emt 00:00:13]} 38. Ne6 {[%clk 00:11:41]} {[%emt 00:00:51]} Rg8
{[%clk 00:00:12]} {[%emt 00:00:15]} 39. Rd3 {[%clk 00:09:06]} {[%emt 00:02:45]}
Qe2 {[%clk 00:00:15]} {[%emt 00:00:07]} 40. Nxg7 {[%clk 00:08:57]} {[%emt
00:00:19]} Rxg7 {[%clk 00:00:18]} {[%emt 00:00:08]} 41. Rd7 {[%clk 00:09:06]}
1-0